{"text_format":"1","workbook":"xlsx","n_sheets":1,"sheets":["Blad1"],"not_rendered":{"charts":0,"images":1,"macros":1,"external_links":0,"defined_names":1,"comments":0,"pivot_tables":0},"unopened":[],"bounds":{"document_bytes":16777216,"sheet_cells":100000,"rows_first":2000,"rows_last":500,"rows_between":2000,"halvings":0,"cell_chars":16384,"cell_head_chars":4096},"cells_cut":0,"cells_raw":0,"read":"whole","date_system":"1900"}

{"sheet":"Blad1","index":0,"n_rows":187,"n_cols":18,"rows_kept":187,"cut":false,"hidden":false,"merged":[]}
["baby",{"$f":"IF(A1<>\"\", \"Hoera\",\"\")","v":"Hoera"},"keuze",null,null,null,"baby",{"$f":"IF(G1<>\"\", \"Hoera\",\"\")","v":"Hoera"},null,"volwassen",null,"wie","wat",null,null,null,"baby",{"$f":"IF(Q1<>\"\", \"Hoera\",\"\")","v":"Hoera"}]
["peuter",{"$f":"IF(A2<>\"\", \"Hoera\",\"\")","v":"Hoera"},"baby",null,null,null,"peuter",{"$f":"IF(G2<>\"\", \"Hoera\",\"\")","v":"Hoera"},null,null,null,"baby",{"$f":"IF(L2<>\"\", \"Hoera\",\"\")","v":"Hoera"},null,null,null,"peuter",{"$f":"IF(Q2<>\"\", \"Hoera\",\"\")","v":"Hoera"}]
["volwassen",{"$f":"IF(A3<>\"\", \"Hoera\",\"\")","v":"Hoera"},"peuter",null,null,null,"volwassen",{"$f":"IF(G3<>\"\", \"Hoera\",\"\")","v":"Hoera"},null,null,null,"peuter",{"$f":"IF(L3<>\"\", \"Hoera\",\"\")","v":"Hoera"},null,null,null,"volwassen",{"$f":"IF(Q3<>\"\", \"Hoera\",\"\")","v":"Hoera"}]
["baby","Hoera","volwassen",null,null,null,"baby","Hoera",null,null,null,"volwassen",{"$f":"IF(L4<>\"\", \"Hoera\",\"\")","v":"Hoera"},null,null,null,"baby","Hoera"]
["peuter","Hoera",null,null,null,null,"peuter","Hoera",null,null,null,"peuter","Hoera",null,null,null,"peuter","Hoera"]
["volwassen","Hoera",null,null,null,null,"volwassen","Hoera",null,null,null,"peuter","Hoera",null,null,null,"volwassen","Hoera"]
["baby","Hoera",null,null,null,null,"baby","Hoera",null,null,null,"volwassen","Hoera",null,null,null,"baby","Hoera"]
["peuter","Hoera",null,null,null,null,"peuter","Hoera",null,null,null,"volwassen","Hoera",null,null,null,"peuter","Hoera"]
["volwassen","Hoera",null,null,null,null,"volwassen","Hoera",null,null,null,"peuter","Hoera",null,null,null,"volwassen","Hoera"]
["baby","Hoera",null,null,null,null,"baby","Hoera",null,null,null,"volwassen","Hoera",null,null,null,"baby","Hoera"]
["peuter","Hoera",null,null,null,null,"peuter","Hoera",null,null,null,"baby","Hoera",null,"dit werkt tot rij 1.048.576",null,"peuter","Hoera"]
["volwassen","Hoera",null,null,null,null,"volwassen","Hoera",null,null,null,"peuter","Hoera",null,null,null,"volwassen","Hoera"]
["baby","Hoera",null,null,null,null,"baby","Hoera",null,null,null,"baby","Hoera",null,null,null,"baby","Hoera"]
["peuter","Hoera",null,null,null,null,"peuter","Hoera",null,null,null,"baby","Hoera",null,null,null,"peuter","Hoera"]
["volwassen","Hoera",null,null,null,null,null,"",null,null,null,"volwassen",{"$f":"IF(L15<>\"\", \"Hoera\",\"\")","v":"Hoera"},null,null,null,"volwassen","Hoera"]
["baby","Hoera",null,null,null,null,null,"",null,null,null,"peuter",{"$f":"IF(L16<>\"\", \"Hoera\",\"\")","v":"Hoera"},null,null,null,"baby","Hoera"]
["peuter","Hoera",null,null,null,null,null,"",null,null,null,null,null,null,null,null,"peuter","Hoera"]
[null,"",null,null,null,null,null,""]
[null,"",null,null,null,null,null,""]
[null,"",null,null,null,null,null,""]
[null,"",null,null,null,null,null,""]
[null,"",null,null,null,null,null,""]
[null,"",null,null,null,null,null,""]
[null,"",null,null,null,null,null,""]
[null,"",null,null,null,null,null,""]
[null,"",null,null,null,null,null,""]
[null,"",null,null,null,null,null,""]
[null,"",null,null,null,null,null,""]
[null,"",null,null,null,null,null,""]
[null,"",null,null,null,null,null,""]
[null,"",null,null,null,null,null,""]
[null,"",null,null,null,null,null,""]
[null,"",null,null,null,null,null,""]
[null,"",null,null,null,null,null,""]
[null,"",null,null,null,null,null,""]
[null,"",null,null,null,null,null,""]
[null,"",null,null,null,null,null,""]
[null,"",null,null,null,null,null,""]
[null,"",null,null,null,null,null,""]
[null,"",null,null,null,null,null,""]
[null,"",null,null,null,null,null,""]
[null,"",null,null,null,null,null,""]
[null,"",null,null,null,null,null,""]
[null,"",null,null,null,null,null,""]
[null,"",null,null,null,null,null,""]
[null,"",null,null,null,null,null,""]
[null,"",null,null,null,null,null,""]
[null,"",null,null,null,null,null,""]
[null,"",null,null,null,null,null,""]
[null,"",null,null,null,null,null,""]
[null,"",null,null,null,null,null,""]
[null,"",null,null,null,null,null,""]
[null,"",null,null,null,null,null,""]
[null,"",null,null,null,null,null,""]
[null,"",null,null,null,null,null,""]
[null,"",null,null,null,null,null,""]
[null,"",null,null,null,null,null,""]
[null,"",null,null,null,null,null,""]
[null,"",null,null,null,null,null,""]
[null,"",null,null,null,null,null,""]
[null,"",null,null,null,null,null,""]
[null,"",null,null,null,null,null,""]
[null,"",null,null,null,null,null,""]
[null,"",null,null,null,null,null,""]
[null,"",null,null,null,null,null,""]
[null,{"$f":"IF(A66<>\"\", \"Hoera\",\"\")","v":""},null,null,null,null,null,""]
[null,"",null,null,null,null,null,{"$f":"IF(G67<>\"\", \"Hoera\",\"\")","v":""}]
[null,"",null,null,null,null,null,""]
[null,"",null,null,null,null,null,""]
[null,"",null,null,null,null,null,""]
[null,"",null,null,null,null,null,""]
[null,"",null,null,null,null,null,""]
[null,"",null,null,null,null,null,""]
[null,"",null,null,null,null,null,""]
[null,"",null,null,null,null,null,""]
[null,"",null,null,null,null,null,""]
[null,"",null,null,null,null,null,""]
[null,"",null,null,null,null,null,""]
[null,"",null,null,null,null,null,""]
[null,"",null,null,null,null,null,""]
[null,"",null,null,null,null,null,""]
[null,"",null,null,null,null,null,""]
[null,"",null,null,null,null,null,""]
[null,"",null,null,null,null,null,""]
[null,"",null,null,null,null,null,""]
[null,"",null,null,null,null,null,""]
[null,"",null,null,null,null,null,""]
[null,"",null,null,null,null,null,""]
[null,"",null,null,null,null,null,""]
[null,"",null,null,null,null,null,""]
[null,"",null,null,null,null,null,""]
[null,"",null,null,null,null,null,""]
[null,"",null,null,null,null,null,""]
[null,"",null,null,null,null,null,""]
[null,"",null,null,null,null,null,""]
[null,"",null,null,null,null,null,""]
[null,"",null,null,null,null,null,""]
[null,"",null,null,null,null,null,""]
[null,"",null,null,null,null,null,""]
[null,"",null,null,null,null,null,""]
[null,"",null,null,null,null,null,""]
[null,"",null,null,null,null,null,""]
[null,"",null,null,null,null,null,""]
[null,"",null,null,null,null,null,""]
[null,"",null,null,null,null,null,""]
[null,"",null,null,null,null,null,""]
[null,"",null,null,null,null,null,""]
[null,"",null,null,null,null,null,""]
[null,"",null,null,null,null,null,""]
[null,"",null,null,null,null,null,""]
[null,"",null,null,null,null,null,""]
[null,"",null,null,null,null,null,""]
[null,"",null,null,null,null,null,""]
[null,"",null,null,null,null,null,""]
[null,"",null,null,null,null,null,""]
[null,"",null,null,null,null,null,""]
[null,"",null,null,null,null,null,""]
[null,"",null,null,null,null,null,""]
[null,"",null,null,null,null,null,""]
[null,"",null,null,null,null,null,""]
[null,"",null,null,null,null,null,""]
[null,"",null,null,null,null,null,""]
[null,"",null,null,null,null,null,""]
[null,"",null,null,null,null,null,""]
[null,"",null,null,null,null,null,""]
[null,"",null,null,null,null,null,""]
[null,"",null,null,null,null,null,""]
[null,"",null,null,null,null,null,""]
[null,"",null,null,null,null,null,""]
[null,{"$f":"IF(A130<>\"\", \"Hoera\",\"\")","v":""},null,null,null,null,null,""]
[null,"",null,null,null,null,null,{"$f":"IF(G131<>\"\", \"Hoera\",\"\")","v":""}]
[null,"",null,null,null,null,null,""]
[null,"",null,null,null,null,null,""]
[null,"",null,null,null,null,null,""]
[null,"",null,null,null,null,null,""]
[null,"",null,null,null,null,null,""]
[null,"",null,null,null,null,null,""]
[null,"",null,null,null,null,null,""]
[null,"",null,null,null,null,null,""]
[null,"",null,null,null,null,null,""]
[null,"",null,null,null,null,null,""]
[null,"",null,null,null,null,null,""]
[null,"",null,null,null,null,null,""]
[null,"",null,null,null,null,null,""]
[null,"",null,null,null,null,null,""]
[null,"",null,null,null,null,null,""]
[null,"",null,null,null,null,null,""]
[null,"",null,null,null,null,null,""]
[null,"",null,null,null,null,null,""]
[null,"",null,null,null,null,null,""]
[null,"",null,null,null,null,null,""]
[null,"",null,null,null,null,null,""]
[null,"",null,null,null,null,null,""]
[null,"",null,null,null,null,null,""]
[null,"",null,null,null,null,null,""]
[null,"",null,null,null,null,null,""]
[null,"",null,null,null,null,null,""]
[null,"",null,null,null,null,null,""]
[null,"",null,null,null,null,null,""]
[null,"",null,null,null,null,null,""]
[null,"",null,null,null,null,null,""]
[null,"",null,null,null,null,null,""]
[null,"",null,null,null,null,null,""]
[null,"",null,null,null,null,null,""]
[null,"",null,null,null,null,null,""]
[null,"",null,null,null,null,null,""]
[null,"",null,null,null,null,null,""]
[null,"",null,null,null,null,null,""]
[null,"",null,null,null,null,null,""]
[null,"",null,null,null,null,null,""]
[null,"",null,null,null,null,null,""]
[null,"",null,null,null,null,null,""]
[null,"",null,null,null,null,null,""]
[null,"",null,null,null,null,null,""]
[null,"",null,null,null,null,null,""]
[null,"",null,null,null,null,null,""]
[null,"",null,null,null,null,null,""]
[null,"",null,null,null,null,null,""]
[null,"",null,null,null,null,null,""]
[null,"",null,null,null,null,null,""]
[null,"",null,null,null,null,null,""]
[null,"",null,null,null,null,null,""]
[null,"",null,null,null,null,null,""]
[null,"",null,null,null,null,null,""]
[null,"",null,null,null,null,null,""]
[null,"",null,null,null,null,null,""]
[null,"",null,null,null,null,null,""]